{"text_format":"3","workbook":"xlsx","n_sheets":1,"sheets":["Uitgavebudget"],"not_rendered":{"charts":2,"defined_names":3},"read":"whole","date_system":"1900"}

{"sheet":"Uitgavebudget","index":0,"n_rows":47,"n_cols":7,"rows_kept":47,"merged":[[0,1,0,4],[0,5,0,6],[16,1,16,6],[48,1,48,6]]}
[null,"Uitgavebudget",{"$nulls":3},"CONTOSO, 2013"]
[]
[]
[null," PERSONEELSBUDGET"]
{"$rows_empty":7}
[null,"STATUS","PERSONEEL","BUDGET","WERKELIJK","VERSCHIL ($)","VERSCHIL (%)"]
[null,{"$f":"IFERROR(tblPersoneeluitgaven[[#This Row],[WERKELIJK]]/tblPersoneeluitgaven[[#This Row],[BUDGET]],\"\")","v":{"v":1.13,"d":"$1.13"}},"Kantoor",{"v":500,"d":"€ 500.00"},{"v":565,"d":"€ 565.00"},{"$f":"tblPersoneeluitgaven[[#This Row],[BUDGET]]-tblPersoneeluitgaven[[#This Row],[WERKELIJK]]","v":{"v":-65,"d":"-€ 65.00"}},{"$f":"IFERROR(tblPersoneeluitgaven[VERSCHIL ($)]/tblPersoneeluitgaven[BUDGET],\"\")","v":{"v":-0.13,"d":"-13%"}}]
[null,{"$f":"IFERROR(tblPersoneeluitgaven[[#This Row],[WERKELIJK]]/tblPersoneeluitgaven[[#This Row],[BUDGET]],\"\")","v":{"v":1.2,"d":"$1.20"}},"Winkel",{"v":125,"d":"€ 125.00"},{"v":150,"d":"€ 150.00"},{"$f":"tblPersoneeluitgaven[[#This Row],[BUDGET]]-tblPersoneeluitgaven[[#This Row],[WERKELIJK]]","v":{"v":-25,"d":"-€ 25.00"}},{"$f":"IFERROR(tblPersoneeluitgaven[VERSCHIL ($)]/tblPersoneeluitgaven[BUDGET],\"\")","v":{"v":-0.2,"d":"-20%"}}]
[null,{"$f":"IFERROR(tblPersoneeluitgaven[[#This Row],[WERKELIJK]]/tblPersoneeluitgaven[[#This Row],[BUDGET]],\"\")","v":{"v":1,"d":"$1.00"}},"Verkopers",{"v":100,"d":"€ 100.00"},{"v":100,"d":"€ 100.00"},{"$f":"tblPersoneeluitgaven[[#This Row],[BUDGET]]-tblPersoneeluitgaven[[#This Row],[WERKELIJK]]","v":{"v":0,"d":"€ 0.00"}},{"$f":"IFERROR(tblPersoneeluitgaven[VERSCHIL ($)]/tblPersoneeluitgaven[BUDGET],\"\")","v":{"v":0,"d":"0%"}}]
[null,{"$f":"IFERROR(tblPersoneeluitgaven[[#This Row],[WERKELIJK]]/tblPersoneeluitgaven[[#This Row],[BUDGET]],\"\")","v":{"v":0.9,"d":"$0.90"}},"Overig",{"v":100,"d":"€ 100.00"},{"v":90,"d":"€ 90.00"},{"$f":"tblPersoneeluitgaven[[#This Row],[BUDGET]]-tblPersoneeluitgaven[[#This Row],[WERKELIJK]]","v":{"v":10,"d":"€ 10.00"}},{"$f":"IFERROR(tblPersoneeluitgaven[VERSCHIL ($)]/tblPersoneeluitgaven[BUDGET],\"\")","v":{"v":0.1,"d":"10%"}}]
[]
[]
[null," BEDRIJFSBUDGET"]
{"$rows_empty":7}
[null,"STATUS","BEDRIJFSUITGAVEN","BUDGET","WERKELIJK","VERSCHIL ($)","VERSCHIL (%)"]
[null,{"$f":"IFERROR(tblBedrijfsuitgaven[[#This Row],[WERKELIJK]]/tblBedrijfsuitgaven[[#This Row],[BUDGET]],\"\")","v":{"v":0.98,"d":"$0.98"}},"Reclame",{"v":250,"d":"€ 250.00"},{"v":245,"d":"€ 245.00"},{"$f":"tblBedrijfsuitgaven[[#This Row],[BUDGET]]-tblBedrijfsuitgaven[[#This Row],[WERKELIJK]]","v":{"v":5,"d":"€ 5.00"}},{"$f":"IFERROR(tblBedrijfsuitgaven[[#This Row],[VERSCHIL ($)]]/tblBedrijfsuitgaven[[#This Row],[BUDGET]],\"\")","v":{"v":0.02,"d":"2%"}}]
[null,{"$f":"IFERROR(tblBedrijfsuitgaven[[#This Row],[WERKELIJK]]/tblBedrijfsuitgaven[[#This Row],[BUDGET]],\"\")","v":{"v":1.2,"d":"$1.20"}},"Schulden",{"v":125,"d":"€ 125.00"},{"v":150,"d":"€ 150.00"},{"$f":"tblBedrijfsuitgaven[[#This Row],[BUDGET]]-tblBedrijfsuitgaven[[#This Row],[WERKELIJK]]","v":{"v":-25,"d":"-€ 25.00"}},{"$f":"IFERROR(tblBedrijfsuitgaven[[#This Row],[VERSCHIL ($)]]/tblBedrijfsuitgaven[[#This Row],[BUDGET]],\"\")","v":{"v":-0.2,"d":"-20%"}}]
[null,{"$f":"IFERROR(tblBedrijfsuitgaven[[#This Row],[WERKELIJK]]/tblBedrijfsuitgaven[[#This Row],[BUDGET]],\"\")","v":{"v":1,"d":"$1.00"}},"Subsidies",{"v":100,"d":"€ 100.00"},{"v":100,"d":"€ 100.00"},{"$f":"tblBedrijfsuitgaven[[#This Row],[BUDGET]]-tblBedrijfsuitgaven[[#This Row],[WERKELIJK]]","v":{"v":0,"d":"€ 0.00"}},{"$f":"IFERROR(tblBedrijfsuitgaven[[#This Row],[VERSCHIL ($)]]/tblBedrijfsuitgaven[[#This Row],[BUDGET]],\"\")","v":{"v":0,"d":"0%"}}]
[null,{"$f":"IFERROR(tblBedrijfsuitgaven[[#This Row],[WERKELIJK]]/tblBedrijfsuitgaven[[#This Row],[BUDGET]],\"\")","v":{"v":0.9,"d":"$0.90"}},"Benodigdheden",{"v":100,"d":"€ 100.00"},{"v":90,"d":"€ 90.00"},{"$f":"tblBedrijfsuitgaven[[#This Row],[BUDGET]]-tblBedrijfsuitgaven[[#This Row],[WERKELIJK]]","v":{"v":10,"d":"€ 10.00"}},{"$f":"IFERROR(tblBedrijfsuitgaven[[#This Row],[VERSCHIL ($)]]/tblBedrijfsuitgaven[[#This Row],[BUDGET]],\"\")","v":{"v":0.1,"d":"10%"}}]
[null,{"$f":"IFERROR(tblBedrijfsuitgaven[[#This Row],[WERKELIJK]]/tblBedrijfsuitgaven[[#This Row],[BUDGET]],\"\")","v":""},"Portokosten",null,null,{"$f":"tblBedrijfsuitgaven[[#This Row],[BUDGET]]-tblBedrijfsuitgaven[[#This Row],[WERKELIJK]]","v":{"v":0,"d":"€ 0.00"}},{"$f":"IFERROR(tblBedrijfsuitgaven[[#This Row],[VERSCHIL ($)]]/tblBedrijfsuitgaven[[#This Row],[BUDGET]],\"\")","v":""}]
[null,{"$f":"IFERROR(tblBedrijfsuitgaven[[#This Row],[WERKELIJK]]/tblBedrijfsuitgaven[[#This Row],[BUDGET]],\"\")","v":""},"Huur of hypotheek",null,null,{"$f":"tblBedrijfsuitgaven[[#This Row],[BUDGET]]-tblBedrijfsuitgaven[[#This Row],[WERKELIJK]]","v":{"v":0,"d":"€ 0.00"}},{"$f":"IFERROR(tblBedrijfsuitgaven[[#This Row],[VERSCHIL ($)]]/tblBedrijfsuitgaven[[#This Row],[BUDGET]],\"\")","v":""}]
[null,{"$f":"IFERROR(tblBedrijfsuitgaven[[#This Row],[WERKELIJK]]/tblBedrijfsuitgaven[[#This Row],[BUDGET]],\"\")","v":""},"Verkoopuitgaven",null,null,{"$f":"tblBedrijfsuitgaven[[#This Row],[BUDGET]]-tblBedrijfsuitgaven[[#This Row],[WERKELIJK]]","v":{"v":0,"d":"€ 0.00"}},{"$f":"IFERROR(tblBedrijfsuitgaven[[#This Row],[VERSCHIL ($)]]/tblBedrijfsuitgaven[[#This Row],[BUDGET]],\"\")","v":""}]
[null,{"$f":"IFERROR(tblBedrijfsuitgaven[[#This Row],[WERKELIJK]]/tblBedrijfsuitgaven[[#This Row],[BUDGET]],\"\")","v":""},"Belasting",null,null,{"$f":"tblBedrijfsuitgaven[[#This Row],[BUDGET]]-tblBedrijfsuitgaven[[#This Row],[WERKELIJK]]","v":{"v":0,"d":"€ 0.00"}},{"$f":"IFERROR(tblBedrijfsuitgaven[[#This Row],[VERSCHIL ($)]]/tblBedrijfsuitgaven[[#This Row],[BUDGET]],\"\")","v":""}]
[null,{"$f":"IFERROR(tblBedrijfsuitgaven[[#This Row],[WERKELIJK]]/tblBedrijfsuitgaven[[#This Row],[BUDGET]],\"\")","v":""},"Gas, water, elektra",null,null,{"$f":"tblBedrijfsuitgaven[[#This Row],[BUDGET]]-tblBedrijfsuitgaven[[#This Row],[WERKELIJK]]","v":{"v":0,"d":"€ 0.00"}},{"$f":"IFERROR(tblBedrijfsuitgaven[[#This Row],[VERSCHIL ($)]]/tblBedrijfsuitgaven[[#This Row],[BUDGET]],\"\")","v":""}]
[null,{"$f":"IFERROR(tblBedrijfsuitgaven[[#This Row],[WERKELIJK]]/tblBedrijfsuitgaven[[#This Row],[BUDGET]],\"\")","v":""},"Overig",null,null,{"$f":"tblBedrijfsuitgaven[[#This Row],[BUDGET]]-tblBedrijfsuitgaven[[#This Row],[WERKELIJK]]","v":{"v":0,"d":"€ 0.00"}},{"$f":"IFERROR(tblBedrijfsuitgaven[[#This Row],[VERSCHIL ($)]]/tblBedrijfsuitgaven[[#This Row],[BUDGET]],\"\")","v":""}]
[null,{"$f":"IFERROR(tblBedrijfsuitgaven[[#This Row],[WERKELIJK]]/tblBedrijfsuitgaven[[#This Row],[BUDGET]],\"\")","v":""},"Verzekering",null,null,{"$f":"tblBedrijfsuitgaven[[#This Row],[BUDGET]]-tblBedrijfsuitgaven[[#This Row],[WERKELIJK]]","v":{"v":0,"d":"€ 0.00"}},{"$f":"IFERROR(tblBedrijfsuitgaven[[#This Row],[VERSCHIL ($)]]/tblBedrijfsuitgaven[[#This Row],[BUDGET]],\"\")","v":""}]
[null,{"$f":"IFERROR(tblBedrijfsuitgaven[[#This Row],[WERKELIJK]]/tblBedrijfsuitgaven[[#This Row],[BUDGET]],\"\")","v":""},"Rente",null,null,{"$f":"tblBedrijfsuitgaven[[#This Row],[BUDGET]]-tblBedrijfsuitgaven[[#This Row],[WERKELIJK]]","v":{"v":0,"d":"€ 0.00"}},{"$f":"IFERROR(tblBedrijfsuitgaven[[#This Row],[VERSCHIL ($)]]/tblBedrijfsuitgaven[[#This Row],[BUDGET]],\"\")","v":""}]
[null,{"$f":"IFERROR(tblBedrijfsuitgaven[[#This Row],[WERKELIJK]]/tblBedrijfsuitgaven[[#This Row],[BUDGET]],\"\")","v":""},"Telefoon",null,null,{"$f":"tblBedrijfsuitgaven[[#This Row],[BUDGET]]-tblBedrijfsuitgaven[[#This Row],[WERKELIJK]]","v":{"v":0,"d":"€ 0.00"}},{"$f":"IFERROR(tblBedrijfsuitgaven[[#This Row],[VERSCHIL ($)]]/tblBedrijfsuitgaven[[#This Row],[BUDGET]],\"\")","v":""}]
[null,{"$f":"IFERROR(tblBedrijfsuitgaven[[#This Row],[WERKELIJK]]/tblBedrijfsuitgaven[[#This Row],[BUDGET]],\"\")","v":""},"Onderhoud en reparaties",null,null,{"$f":"tblBedrijfsuitgaven[[#This Row],[BUDGET]]-tblBedrijfsuitgaven[[#This Row],[WERKELIJK]]","v":{"v":0,"d":"€ 0.00"}},{"$f":"IFERROR(tblBedrijfsuitgaven[[#This Row],[VERSCHIL ($)]]/tblBedrijfsuitgaven[[#This Row],[BUDGET]],\"\")","v":""}]
[null,{"$f":"IFERROR(tblBedrijfsuitgaven[[#This Row],[WERKELIJK]]/tblBedrijfsuitgaven[[#This Row],[BUDGET]],\"\")","v":""},"Juridische kosten",null,null,{"$f":"tblBedrijfsuitgaven[[#This Row],[BUDGET]]-tblBedrijfsuitgaven[[#This Row],[WERKELIJK]]","v":{"v":0,"d":"€ 0.00"}},{"$f":"IFERROR(tblBedrijfsuitgaven[[#This Row],[VERSCHIL ($)]]/tblBedrijfsuitgaven[[#This Row],[BUDGET]],\"\")","v":""}]
[null,{"$f":"IFERROR(tblBedrijfsuitgaven[[#This Row],[WERKELIJK]]/tblBedrijfsuitgaven[[#This Row],[BUDGET]],\"\")","v":""},"Afschrijving",null,null,{"$f":"tblBedrijfsuitgaven[[#This Row],[BUDGET]]-tblBedrijfsuitgaven[[#This Row],[WERKELIJK]]","v":{"v":0,"d":"€ 0.00"}},{"$f":"IFERROR(tblBedrijfsuitgaven[[#This Row],[VERSCHIL ($)]]/tblBedrijfsuitgaven[[#This Row],[BUDGET]],\"\")","v":""}]
[null,{"$f":"IFERROR(tblBedrijfsuitgaven[[#This Row],[WERKELIJK]]/tblBedrijfsuitgaven[[#This Row],[BUDGET]],\"\")","v":""},"Verzending",null,null,{"$f":"tblBedrijfsuitgaven[[#This Row],[BUDGET]]-tblBedrijfsuitgaven[[#This Row],[WERKELIJK]]","v":{"v":0,"d":"€ 0.00"}},{"$f":"IFERROR(tblBedrijfsuitgaven[[#This Row],[VERSCHIL ($)]]/tblBedrijfsuitgaven[[#This Row],[BUDGET]],\"\")","v":""}]
[null,{"$f":"IFERROR(tblBedrijfsuitgaven[[#This Row],[WERKELIJK]]/tblBedrijfsuitgaven[[#This Row],[BUDGET]],\"\")","v":""},"Opslag",null,null,{"$f":"tblBedrijfsuitgaven[[#This Row],[BUDGET]]-tblBedrijfsuitgaven[[#This Row],[WERKELIJK]]","v":{"v":0,"d":"€ 0.00"}},{"$f":"IFERROR(tblBedrijfsuitgaven[[#This Row],[VERSCHIL ($)]]/tblBedrijfsuitgaven[[#This Row],[BUDGET]],\"\")","v":""}]
[null,{"$f":"IFERROR(tblBedrijfsuitgaven[[#This Row],[WERKELIJK]]/tblBedrijfsuitgaven[[#This Row],[BUDGET]],\"\")","v":""},"Overig",null,null,{"$f":"tblBedrijfsuitgaven[[#This Row],[BUDGET]]-tblBedrijfsuitgaven[[#This Row],[WERKELIJK]]","v":{"v":0,"d":"€ 0.00"}},{"$f":"IFERROR(tblBedrijfsuitgaven[[#This Row],[VERSCHIL ($)]]/tblBedrijfsuitgaven[[#This Row],[BUDGET]],\"\")","v":""}]
[null,null,"Totale uitgaven",{"$f":"SUBTOTAL(109,tblBedrijfsuitgaven[BUDGET],tblPersoneeluitgaven[BUDGET])","v":{"v":1400,"d":"€ 1,400.00"}},{"$f":"SUBTOTAL(109,tblBedrijfsuitgaven[WERKELIJK],tblPersoneeluitgaven[WERKELIJK])","v":{"v":1490,"d":"€ 1,490.00"}},{"$f":"SUBTOTAL(109,tblBedrijfsuitgaven[VERSCHIL ($)],tblPersoneeluitgaven[VERSCHIL ($)])","v":{"v":-90,"d":"-€ 90.00"}},{"$f":"IFERROR(SUM(tblBedrijfsuitgaven[[#Totals],[VERSCHIL ($)]]/tblBedrijfsuitgaven[[#Totals],[BUDGET]]),\"\")","v":{"v":-0.06428571428571428,"d":"-6%"}}]